[Event "Czech Championship 2022"]
[Site "Usti nad Labem"]
[Date "2022.05.21"]
[Round "8.12"]
[White "Gnojek, Petr"]
[Black "Krivanek, Vladimir"]
[Result "1-0"]
[ECO "A60"]
[WhiteElo "2302"]
[BlackElo "2180"]
[Annotator "TA"]
[PlyCount "71"]
[EventDate "2022.05.12"]
[EventType "swiss"]
[EventCountry "CZE"]
[SourceTitle "playchess.com"]
[Source "ChessBase"]
[SourceQuality "1"]
[TimeControl "40/5400+30:1800+30"]

{[%evp 11,71,46,64,54,84,74,83,75,78,76,90,80,89,75,62,48,93,78,96,93,127,75,122,122,137,118,127,117,130,44,182,180,208,214,214,207,364,396,437,409,443,315,336,287,291,291,293,302,298,301,304,312,290,292,288,195,446,439,766,752,784,738]} 1. d4 {[%emt 0:00:06]} Nf6 {[%emt 0:00:18]} 2. c4 {[%emt 0:00:15]} e6 {[%emt 0:00:48]} 3. Nc3 {[%emt 0:00:18]} c5 {[%emt 0:00:48]} 4. d5 {[%emt 0:00:14]} exd5 {[%emt 0:00:36]} 5. cxd5 {[%emt 0:00:08]} d6 {[%emt 0:00:18]} 6. Nf3 {[%emt 0:00:14][%cal Bg1f3,Bf3d2,Bd2c4][%mdl 32]} a6 {[%emt 0:01:44]} 7. a4 {[%emt 0:00:42] A60: Modern Benoni: Early Divergences.} Nbd7 {[%emt 0:08:05]} 8. e4 {[%emt 0:01:51]} Be7 {[%emt 0:06:40]} 9. Be2 {[%emt 0:01:07] White is better.} O-O {[%emt 0:00:48]} 10. O-O {[%emt 0:00:08]} Re8 {[%emt 0:00:32]} 11. Nd2 {[%emt 0:01:21]} Rb8 {[%emt 0:07:54] [#]} 12. Nc4 $146 {[%emt 0:06:24]} ({Predecessor:} 12. a5 Nf8 13. Qc2 Ng6 14. f4 Bf8 15. h3 b5 16. axb6 Rxb6 17. Nc4 Rb4 18. b3 {0-1 (79) Safin,R (2283)-Jobava,B (2603) Chess.com INT 2021}) 12... Bf8 {[%emt 0:03:34]} 13. f3 {[%emt 0:11:26]} b6 {[%emt 0:03:14]} 14. Be3 {[%emt 0:03:48]} Qc7 {[%emt 0:03:58]} 15. Qd2 $36 {[%emt 0:03:45][%mdl 2048] White has strong initiative.} Bb7 {[%emt 0:17:04]} 16. Bd3 {[%emt 0:08:34]} ({White should play} 16. Rab1) 16... Ba8 {[%emt 0:05:50]} ({Black should try} 16... Ne5) 17. Na3 $16 {[%emt 0:00:39] 0x0.001a2ce45635dp-1022s more active pieces.} Qc8 {[%emt 0:02:50]} 18. Qe2 {[%emt 0:00:17]} Bb7 {[%emt 0:00:46]} 19. f4 {[%emt 0:00:58]} Qd8 {[%emt 0:04:57]} 20. Rae1 {[%emt 0:04:12]} (20. h3 $16) 20... Ra8 {[%emt 0:04:54] Black cannot hold the game after this.} (20... b5 $1 $14) 21. Qf3 $18 {[%emt 0:01:41]} Bc8 {[%emt 0:02:45]} 22. Bf2 {[%emt 0:00:46]} Rb8 {[%emt 0:00:59]} 23. Bg3 {[%emt 0:02:29]} Qc7 $2 {[%emt 0:09:31]} (23... g6 24. Bh4 c4) 24. e5 {[%emt 0:05:29]} c4 {[%emt 0:07:23]} 25. Nxc4 {[%emt 0:00:31]} (25. exf6 Rxe1 26. Rxe1 cxd3 $16) 25... b5 {[%emt 0:00:13]} 26. axb5 {[%emt 0:01:46]} axb5 {[%emt 0:00:16]} 27. Nxd6 {[%emt 0:01:39]} Bxd6 {[%emt 0:00:50]} 28. exd6 {[%emt 0:00:06] The board is on fire.} Qxd6 {[%emt 0:01:33]} 29. Rxe8+ {[%emt 0:02:53]} (29. Nxb5 Rxb5 30. Rxe8+ (30. Bxb5 Qc5+ 31. Bf2 Qxb5 $15) 30... Nxe8 $16) (29. Bxb5 Rxe1 30. Rxe1 {[#]} Rxb5 $1 31. Nxb5 Qc5+ 32. Bf2 Qxb5 $15) 29... Nxe8 {[%emt 0:00:03]} 30. Qe3 {[%emt 0:00:09]} ({Less strong is} 30. Bxb5 Rxb5 31. Qe2 (31. Nxb5 Qc5+ 32. Rf2 Qc1+ 33. Rf1 Qc5+ 34. Rf2 Qc1+ 35. Rf1 Qc5+ $11) 31... Nc7 $16) 30... Nef6 {[%emt 0:03:45]} 31. f5 {[%emt 0:00:29]} ({But not} 31. Bxb5 $6 Qb4 $16) 31... Qb6 {[%emt 0:00:08]} 32. Qxb6 {[%emt 0:00:07]} Rxb6 {[%emt 0:00:02]} 33. Bxb5 {[%emt 0:00:08] [#] aiming for Ra1. A strong pair of Bishops.} Rb7 $2 {[%emt 0:01:21]} (33... Ba6 {was necessary.}) 34. Ra1 {[%emt 0:02:54] White is clearly winning.} Nb6 {[%emt 0:01:24]} (34... h5 $142 35. Ra3 Nb6) 35. Bc6 {[%emt 0:00:30]} Re7 {[%emt 0:00:56]} 36. Bd6 {[%emt 0:00:08] Weighted Error Value: White=0.15 (very precise) /Black=0.45} 1-0

[Event "Czech Championship 2022"]
[Site "Usti nad Labem"]
[Date "2022.05.21"]
[Round "8.13"]
[White "Jun, Rudolf"]
[Black "Serrano Salvador, Eduardo"]
[Result "1/2-1/2"]
[ECO "B15"]
[WhiteElo "2183"]
[BlackElo "2286"]
[Annotator "TA"]
[PlyCount "103"]
[EventDate "2022.05.12"]
[EventType "swiss"]
[EventCountry "CZE"]
[SourceTitle "playchess.com"]
[Source "ChessBase"]
[SourceQuality "1"]
[TimeControl "40/5400+30:1800+30"]

{[%evp 17,103,0,0,0,0,-6,-6,-9,2,4,12,-23,-16,-28,-7,-28,-16,-21,-22,-20,-24,-39,0,-8,0,0,-2,-14,0,-45,-50,-46,-53,-58,-58,-56,-66,-97,-54,-55,-49,-56,-42,-56,-55,-73,-48,-49,-43,-76,-45,-45,-27,-29,-21,-30,-30,-30,-4,-31,-31,-33,-14,-36,-33,-57,-34,-52,-52,-51,-51,-51,-51,-51,-51,-53,-53,-54,-54,-54,-54,-54,-54,-54,-32,-32,-32,-32]} 1. e4 {[%emt 0:00:03]} c6 {[%emt 0:01:02]} 2. d4 {[%emt 0:01:23]} d5 {[%emt 0:00:06]} 3. Nd2 {[%emt 0:03:14]} dxe4 {[%emt 0:00:08]} 4. Nxe4 {[%emt 0:00:21]} Nf6 {[%emt 0:00:05]} 5. Nxf6+ {[%emt 0:02:08]} exf6 {[%emt 0:00:08]} 6. Nf3 {[%emt 0:00:43]} Bd6 {[%emt 0:00:10]} 7. Be2 {[%emt 0:02:10]} O-O {[%emt 0:00:22]} 8. O-O {[%emt 0:00:08]} Re8 {[%emt 0:00:35]} 9. Be3 {[%emt 0:00:28]} Nd7 {[%emt 0:00:51][%cal Bb8d7,Bd7f8,Bf8g6,Bg6f4][%mdl 32]} 10. Rc1 {[%emt 0:03:01] B15: Caro-Kann: 3 Nc3: 3...g6 and 3...dxe4 4 Nxe4 Nf6 5 Nxf6+ exf6.} Nf8 {[%emt 0:05:55]} 11. c4 {[%emt 0:02:52]} Ng6 {[%emt 0:00:31]} 12. Re1 $1 {[%emt 0:05:07] [#] The position is equal.} Nf4 $146 {[%emt 0:06:59]} ({Predecessor:} 12... Be6 13. b3 Qd7 14. d5 cxd5 15. cxd5 Bg4 16. Bc5 Bf4 17. Rc4 Rac8 18. h3 b5 {0-1 (47) De los Santos,R (2198)-Krstulovic,A (2338) Chess.com INT 2020}) 13. Bf1 {[%emt 0:01:23]} Bg4 {[%emt 0:00:40][%cal Od6b4]} 14. a3 {[%emt 0:02:44] Against Bb4} (14. h3 $5 {[%cal Rh3g4]} Bf5 15. Qd2 $11) 14... Qd7 {[%emt 0:02:55]} 15. b4 {[%emt 0:19:48]} Qf5 {[%emt 0:03:01][%cal Of4h3] [#] aiming for ...Nh3+!} 16. g3 $1 {[%emt 0:31:10]} Nh3+ {[%emt 0:36:22]} 17. Bxh3 {[%emt 0:02:30]} Bxh3 {[%emt 0:00:05]} 18. Nh4 {[%emt 0:01:13]} Qd7 {[%emt 0:00:06]} 19. Ng2 {[%emt 0:01:39]} Re4 {[%emt 0:06:47]} 20. Qd2 {[%emt 0:06:20]} Rd8 {[%emt 0:04:04]} 21. f3 {[%emt 0:02:01]} Ree8 {[%emt 0:02:28]} 22. Rcd1 {[%emt 0:01:55]} Bc7 {[%emt 0:05:59]} 23. Nf4 {[%emt 0:01:50]} Bxf4 {[%emt 0:03:27]} 24. Bxf4 {[%emt 0:00:12]} Rxe1+ {[%emt 0:00:14]} 25. Rxe1 {[%emt 0:01:20][%cal Od4d5]} Be6 {[%emt 0:00:16] Against d5} 26. d5 {[%emt 0:00:56]} cxd5 {[%emt 0:00:07]} 27. cxd5 {[%emt 0:00:11]} Qxd5 {[%emt 0:00:50]} 28. Qxd5 {[%emt 0:00:41]} Rxd5 $15 {[%emt 0:00:05][%mdl 4096] Endgame KRB-KRB} 29. Kf2 {[%emt 0:00:32]} g5 {[%emt 0:01:35]} 30. Bb8 {[%emt 0:01:33]} a6 {[%emt 0:00:09]} 31. Bc7 {[%emt 0:01:20]} Rd7 {[%emt 0:00:24]} 32. Bb6 {[%emt 0:01:55]} Bc4 {[%emt 0:00:11]} 33. Re8+ {[%emt 0:00:18]} Kg7 {[%emt 0:00:07]} 34. Rd8 {[%emt 0:00:13]} Re7 {[%emt 0:01:28]} 35. Be3 {[%emt 0:00:11]} h6 {[%emt 0:01:02]} 36. a4 {[%emt 0:00:26]} Bb3 {[%emt 0:07:04]} 37. a5 {[%emt 0:00:16]} Bc4 {[%emt 0:00:07]} 38. Rd4 {[%emt 0:00:34]} Bb5 {[%emt 0:00:06]} 39. Rd8 {[%emt 0:00:15]} Re5 {[%emt 0:00:47]} 40. Rd6 {[%emt 0:00:42]} Bc6 {[%emt 0:03:11] Black is slightly better.} 41. Bd4 {[%emt 0:06:07]} Re6 {[%emt 0:01:27]} (41... Rf5 {seems wilder.} 42. f4 gxf4 43. g4 Rd5) 42. Rxe6 {[%emt 0:01:01]} fxe6 {[%emt 0:00:05] KB-KB} 43. Bb6 {[%emt 0:01:44]} h5 {[%emt 0:00:58]} 44. h4 {[%emt 0:00:25]} Kg6 {[%emt 0:00:32]} 45. Bd8 {[%emt 0:02:01]} e5 {[%emt 0:01:16]} 46. hxg5 {[%emt 0:02:12]} fxg5 {[%emt 0:00:47]} 47. Ke3 {[%emt 0:00:45]} Kf5 {[%emt 0:00:13]} 48. Be7 {[%emt 0:00:38]} g4 {[%emt 0:01:23]} 49. fxg4+ {[%emt 0:00:41]} Kxg4 {[%emt 0:00:04]} 50. Kf2 {[%emt 0:00:41]} Bf3 {[%emt 0:02:19]} 51. Bd6 {[%emt 0:00:50]} e4 {[%emt 0:00:04]} 52. Ke3 {[%emt 0:00:16] Weighted Error Value: White=0.07 (flawless) /Black=0.08 (flawless)} 1/2-1/2

[Event "Czech Championship 2022"]
[Site "Usti nad Labem"]
[Date "2022.05.21"]
[Round "8.14"]
[White "Sykora, Marek"]
[Black "Bouska, Jiri"]
[Result "1-0"]
[ECO "B06"]
[WhiteElo "2249"]
[BlackElo "2117"]
[Annotator "TA"]
[PlyCount "101"]
[EventDate "2022.05.12"]
[EventType "swiss"]
[EventCountry "CZE"]
[SourceTitle "playchess.com"]
[Source "ChessBase"]
[SourceQuality "1"]
[TimeControl "40/5400+30:1800+30"]

{[%evp 11,101,26,18,8,9,8,12,12,12,12,20,-4,-6,-3,-4,-8,0,-45,-31,-23,214,172,179,179,179,177,169,172,173,101,121,9,50,43,69,52,126,114,131,141,141,141,155,152,148,136,182,78,160,152,153,152,224,214,212,217,232,229,309,294,460,449,471,488,473,463,477,457,468,479,403,212,472,461,446,436,752,639,5631,5706,887,2493,1780,1819,12838,12838,12841,12842,12843,12841,12840,12840]} 1. e4 {[%emt 0:00:04]} c5 {[%emt 0:00:09]} 2. c3 {[%emt 0:00:09]} d5 {[%emt 0:00:09]} 3. exd5 {[%emt 0:00:11]} Qxd5 {[%emt 0:00:07]} 4. d4 {[%emt 0:00:10]} g6 {[%emt 0:00:05]} 5. Nf3 {[%emt 0:01:17]} Bg7 {[%emt 0:00:15]} 6. Na3 {[%emt 0:02:27]} cxd4 {[%emt 0:00:18]} 7. Bc4 {[%emt 0:02:22] B06: Modern Defence.} Qe4+ {[%emt 0:00:08] [#]} 8. Be3 $1 {[%emt 0:01:33][%cal Oa3b5]} Nh6 {[%emt 0:00:18]} (8... dxe3 9. Bxf7+ Kxf7 10. Ng5+ Ke8 11. Nxe4) (8... dxe3 $2 9. Bxf7+ $1 {[%mdl 512]} Kxf7 10. Ng5+ Ke8 11. Nxe4 $18) 9. cxd4 {[%emt 0:03:50] next 0-0 is good for White. The position is equal.} ({But not} 9. Nxd4 Qxg2 10. Qf3 Qxf3 11. Nxf3 O-O $17) 9... O-O {[%emt 0:07:00]} 10. O-O {[%emt 0:06:25] With the idea Re1.} Bg4 {[%emt 0:01:13]} 11. Ng5 {[%emt 0:11:49]} (11. Bxh6 $5 Bxh6 12. Re1 Bxf3 13. Rxe4 Bxd1 14. Rxd1 $11) 11... Qxe3 {[%emt 0:06:46]} 12. fxe3 {[%emt 0:00:22] Dancing on a razor blade.} Bxd1 {[%emt 0:00:06]} 13. Raxd1 {[%emt 0:00:42]} Nc6 {[%emt 0:01:48]} 14. Nc2 {[%emt 0:06:35]} Rac8 {[%emt 0:01:03][%cal Oc6d4]} 15. b3 {[%emt 0:02:14] [#]} Nf5 $146 {[%emt 0:05:08]} (15... Na5 $11 {and Black is okay.} 16. Bd3 Ng4) ({Predecessor:} 15... e6 16. Nxe6 fxe6 17. Bxe6+ Kh8 18. Bxc8 Rxc8 19. e4 Rd8 20. d5 Ne5 21. h3 Nhf7 {½-½ (44) Sebesta,J (1557)-Torngren,G (1764) Prague 2016}) 16. Nxf7 {[%emt 0:07:01] Threatens to win with Nd6+.} Na5 {[%emt 0:15:36]} 17. Nh6+ {[%emt 0:03:47]} Kh8 {[%emt 0:00:51]} 18. Nxf5 {[%emt 0:00:06]} gxf5 {[%emt 0:00:13]} 19. Bd3 {[%emt 0:09:40]} e6 {[%emt 0:02:05]} 20. g3 {[%emt 0:00:33]} (20. d5 $1 $18 {[%cal Rd5e6]}) 20... Nc6 $16 {[%emt 0:03:05]} 21. Na3 {[%emt 0:02:38]} (21. Bc4 $16) 21... Bh6 {[%emt 0:01:20]} 22. Rfe1 {[%emt 0:07:29]} a6 {[%emt 0:13:29]} 23. Nc4 {[%emt 0:03:20][%cal Od4d5]} b5 {[%emt 0:01:00]} (23... Nb4 $14) 24. Nd6 $36 {[%emt 0:05:21][%mdl 2048] White is on the roll.} Rb8 {[%emt 0:02:34]} 25. d5 $1 {[%emt 0:02:27] White is more active.} exd5 {[%emt 0:17:04]} 26. Nxf5 {[%emt 0:00:33]} ({Don't take} 26. Bxf5 $6 Rb6 $14) 26... Bg5 {[%emt 0:00:25]} 27. Bb1 {[%emt 0:01:10]} Rbd8 {[%emt 0:00:53]} 28. Rc1 {[%emt 0:06:20]} Rc8 {[%emt 0:04:48]} (28... Ne7 $16) 29. Rc5 {[%emt 0:01:13]} (29. Nd6 $18 {is more deadly.} Rc7 30. Rc5) 29... Ne5 {[%emt 0:03:17]} (29... Ne7 $142 30. Rxc8 Rxc8) 30. Rxc8 {[%emt 0:03:33]} Rxc8 {[%emt 0:00:15] [#]} 31. Kg2 {[%emt 0:00:15] Prevents Nf3.} Rd8 {[%emt 0:05:54]} (31... Ng4 $16 {was worth a try.} 32. e4 Re8) 32. h4 $18 {[%emt 0:00:45]} Bf6 {[%emt 0:00:23]} 33. Rc1 {[%emt 0:00:12] Inhibits Rc8.} Re8 {[%emt 0:04:53]} 34. Rc7 {[%emt 0:00:37]} Ng4 {[%emt 0:00:49]} 35. Nd6 {[%emt 0:03:39]} Nxe3+ {[%emt 0:01:13]} (35... Re6 $142) 36. Kf3 {[%emt 0:00:06]} Re7 {[%emt 0:00:34]} 37. Rc8+ {[%emt 0:03:23]} Kg7 {[%emt 0:00:09]} 38. Ne8+ {[%emt 0:00:11]} Kf7 {[%emt 0:00:16]} 39. Nxf6 {[%emt 0:00:06]} Kxf6 {[%emt 0:00:05][%mdl 4096] Endgame KRB-KRN} 40. Rc6+ {[%emt 0:01:05]} Kg7 {[%emt 0:00:44]} 41. Rxa6 {[%emt 0:30:15]} (41. h5 $142) 41... Nd1 $2 {[%emt 0:32:51]} (41... Nf1) 42. h5 {[%emt 0:05:02][%cal Bh4h5,Bh5h6][%mdl 32] And now h6+ would win. White is clearly winning.} Rf7+ {[%emt 0:00:00]} 43. Kg4 {[%emt 0:00:00]} Rf6 {[%emt 0:00:00] Against h6+} (43... h6 $142 44. Rg6+ Kh7 45. Re6+ Kg7) 44. Ra7+ {[%emt 0:00:00]} Rf7 {[%emt 0:00:00]} 45. h6+ {[%emt 0:00:00]} Kf6 {[%emt 0:00:00]} 46. Rxf7+ {[%emt 0:00:00]} Kxf7 {[%emt 0:00:00]} 47. a4 {[%emt 0:00:00]} bxa4 {[%emt 0:00:00]} 48. bxa4 {[%emt 0:00:00][%cal Bb3a4,Ba4a5,Ba5a6][%mdl 32]} d4 {[%emt 0:00:00]} 49. a5 {[%emt 0:00:00]} Nc3 {[%emt 0:00:00] [#]} 50. a6 $1 {[%emt 0:00:00]} Nb5 {[%emt 0:00:00]} 51. Bxh7 {[%emt 0:00:00] Weighted Error Value: White=0.21 (precise) /Black=0.40} 1-0

[Event "Czech Championship 2022"]
[Site "Usti nad Labem"]
[Date "2022.05.21"]
[Round "8.15"]
[White "Pokrupa, Marek"]
[Black "Vojta, Jakub"]
[Result "0-1"]
[ECO "C26"]
[WhiteElo "2117"]
[BlackElo "2396"]
[Annotator "TA"]
[PlyCount "98"]
[EventDate "2022.05.12"]
[EventType "swiss"]
[EventCountry "CZE"]
[SourceTitle "playchess.com"]
[Source "ChessBase"]
[SourceQuality "1"]
[TimeControl "40/5400+30:1800+30"]

{[%evp 12,98,16,-3,0,0,0,0,3,-10,-17,-14,-8,-13,-10,-10,-18,-16,-9,-12,-13,-3,0,-8,0,0,0,-2,0,-8,-13,-14,-6,-6,0,-48,-7,-60,-38,-28,-26,-124,-133,-207,-188,-196,-156,-171,-81,-115,-107,-113,-108,-135,-100,-170,-114,-205,-165,-178,-129,-164,0,-185,-157,-159,-54,-143,-27,-25,-30,-57,-43,-119,-84,-578,-589,-793,-755,-2643,-2449,-29975,-651,-29976,-29977,-29995,-29996,-29997,-29998]} 1. g3 {[%emt 0:00:05]} e5 {[%emt 0:00:13]} 2. Bg2 {[%emt 0:00:38]} Nf6 {[%emt 0:00:06]} 3. e4 {[%emt 0:00:44]} Nc6 {[%emt 0:01:03]} 4. Ne2 {[%emt 0:01:10]} Bc5 {[%emt 0:02:18]} 5. Nbc3 {[%emt 0:05:22]} O-O {[%emt 0:02:20]} 6. O-O {[%emt 0:01:42]} a6 {[%emt 0:01:34]} 7. d3 {[%emt 0:01:08]} h6 {[%emt 0:00:48] C26: Vienna Game: 2...Nf6, sidelines .} 8. Nd5 {[%emt 0:02:47]} Nxd5 {[%emt 0:00:21]} 9. exd5 {[%emt 0:00:10]} Nd4 {[%emt 0:02:05] [#] The position is equal.} 10. c3 $146 {[%emt 0:04:42]} ({Predecessor:} 10. Nxd4 exd4 11. Bd2 d6 12. Qh5 Qf6 13. Rae1 Bf5 14. g4 Bg6 15. Qh3 Rfe8 16. Qg3 {1-0 (58) Svancara,P (2187)-Staufcik,M (2048) Czech Republic 2008}) 10... Nxe2+ {[%emt 0:00:15]} 11. Qxe2 {[%emt 0:00:03]} d6 {[%emt 0:00:31]} 12. Be3 {[%emt 0:00:31]} Bxe3 {[%emt 0:00:25]} 13. fxe3 {[%emt 0:14:48]} Qg5 {[%emt 0:01:38]} 14. Rf2 {[%emt 0:11:21]} Bg4 {[%emt 0:01:12]} 15. Qd2 {[%emt 0:09:27]} f5 {[%emt 0:06:06]} 16. Raf1 {[%emt 0:01:42]} Rf6 {[%emt 0:02:29]} 17. e4 {[%emt 0:12:13]} Qxd2 {[%emt 0:02:40]} 18. Rxd2 {[%emt 0:00:05]} f4 {[%emt 0:01:42]} 19. gxf4 {[%emt 0:03:36]} exf4 {[%emt 0:01:07]} 20. Bf3 {[%emt 0:00:56]} Bxf3 {[%emt 0:00:56]} 21. Rxf3 $11 {[%emt 0:00:06][%mdl 4096] Endgame KRR-KRR} g5 {[%emt 0:00:04]} 22. Rg2 {[%emt 0:04:53]} Kg7 {[%emt 0:02:04]} 23. Kf1 {[%emt 0:02:35]} (23. h4 $11 {was preferrable.} Rg6 24. hxg5 hxg5 25. Rh3) 23... Kg6 {[%emt 0:01:16]} 24. Ke2 {[%emt 0:02:25]} (24. h4 $1 $11) 24... Re8 {[%emt 0:01:07]} 25. Rf1 {[%emt 0:01:28]} c6 {[%emt 0:00:58]} 26. dxc6 {[%emt 0:01:19]} (26. c4 $1 $11) 26... bxc6 $17 {[%emt 0:03:03]} 27. Kf3 {[%emt 0:06:37]} (27. Kd2 $17) 27... d5 $1 $19 {[%emt 0:00:45]} 28. Rd2 {[%emt 0:01:03]} Rd6 {[%emt 0:02:15]} 29. Rfd1 {[%emt 0:02:33] [#]} Red8 {[%emt 0:01:33]} (29... Kh5 $1 $19 30. c4 Kh4) 30. e5 {[%emt 0:00:28]} Re6 {[%emt 0:00:02]} 31. d4 {[%emt 0:00:17]} Kf5 {[%emt 0:00:04]} 32. h3 {[%emt 0:04:33]} h5 {[%emt 0:00:07]} 33. Rg1 {[%emt 0:01:23]} (33. Kg2 $17 {might work better.}) 33... Rg6 {[%emt 0:00:07]} (33... a5 $19 34. Re2 a4) 34. Rh2 {[%emt 0:00:29]} (34. Re2 $17) 34... Rdg8 {[%emt 0:02:36]} 35. Re1 {[%emt 0:01:08]} Rh6 {[%emt 0:06:59]} (35... Rc8 $19 36. Rg2 g4+ 37. Kf2 f3) 36. Rg1 {[%emt 0:00:47]} Rhg6 {[%emt 0:01:31]} 37. Re1 $1 {[%emt 0:00:01]} Rh8 {[%emt 0:00:35] White must now prevent ...g4+.} 38. Kf2 {[%emt 0:01:20]} Rhh6 {[%emt 0:01:41]} (38... a5 $17 39. b3 Rc8) 39. Reh1 {[%emt 0:00:08]} (39. a4 $15) 39... c5 {[%emt 0:00:43]} (39... Rh7 $17 {Hoping for ...a5.} 40. Re1 a5) 40. dxc5 $11 {[%emt 0:01:37]} Re6 {[%emt 0:00:24]} ({Resist} 40... Kxe5 41. Re1+ Kf5 42. Rd1 $14) 41. Rd1 {[%emt 0:30:25]} Rxe5 {[%emt 0:30:09]} 42. b4 {[%emt 0:00:53]} (42. Rd2 $15) 42... Rhe6 $17 {[%emt 0:02:46] And now ...Re2+ would win.} 43. Kf1 {[%emt 0:01:42][%mdl 8192] [#] Prevents Re2. Loses the game.} (43. Rd2 $17) 43... f3 $1 $19 {[%emt 0:05:26]} ({Stronger than} 43... g4 44. hxg4+ hxg4 45. Rh5+ Kf6 46. Rxe5 Kxe5 47. Re1+ Kf6 48. Rxe6+ Kxe6 49. a4 $11) 44. Rhd2 {[%emt 0:00:00]} g4 {[%emt 0:00:00][%cal Bg5g4,Bg4g3,Bg3g2][%mdl 32] ...g3 is the strong threat.} 45. Rxd5 {[%emt 0:00:00]} g3 {[%emt 0:00:00] Threatens to win with ...Rxd5.} 46. Rxe5+ {[%emt 0:00:00]} Rxe5 {[%emt 0:00:00]} 47. c6 {[%emt 0:02:01] Strongly threatening c7.} Kf4 {[%emt 0:00:00] Black mates.} 48. c7 {[%emt 0:00:05]} g2+ {[%emt 0:00:00]} 49. Kg1 {[%emt 0:01:02]} Kg3 {[%emt 0:00:00] Weighted Error Value: White=0.83/Black=0.21 (precise)} 0-1

[Event "Czech Championship 2022"]
[Site "Usti nad Labem"]
[Date "2022.05.21"]
[Round "8.16"]
[White "Buchcar, Tomas"]
[Black "Ocelak, Jakub"]
[Result "1-0"]
[ECO "A15"]
[WhiteElo "2183"]
[BlackElo "2060"]
[Annotator "TA"]
[PlyCount "99"]
[EventDate "2022.05.12"]
[EventType "swiss"]
[EventCountry "CZE"]
[SourceTitle "playchess.com"]
[Source "ChessBase"]
[SourceQuality "1"]
[TimeControl "40/5400+30:1800+30"]

{[%evp 12,98,0,-4,-6,-8,0,-14,-14,-12,18,15,19,13,18,8,35,33,58,65,137,131,160,162,181,137,149,162,154,156,287,279,312,220,358,383,384,350,406,394,371,206,566,161,152,107,114,113,200,193,231,244,238,225,243,235,295,289,277,240,367,369,354,364,392,385,368,387,354,347,358,347,371,334,333,308,312,312,333,327,522,521,526,499,611,541,554,514,29999]} 1. Nf3 {[%emt 0:00:05]} Nf6 {[%emt 0:00:53]} 2. c4 {[%emt 0:00:05]} g6 {[%emt 0:02:11]} 3. b3 {[%emt 0:00:04]} Bg7 {[%emt 0:01:01]} 4. Bb2 {[%emt 0:00:05]} O-O {[%emt 0:01:18]} 5. e3 {[%emt 0:00:02]} d6 {[%emt 0:03:07]} 6. Be2 {[%emt 0:00:09]} e5 {[%emt 0:02:01]} 7. d3 {[%emt 0:00:06] 7.0-0 is more fashionable.} a5 {[%emt 0:02:23] A15: English Opening: 1...Nf6.} 8. a3 {[%emt 0:00:05]} Nc6 {[%emt 0:01:12]} 9. Nbd2 {[%emt 0:00:20]} Re8 {[%emt 0:08:35] The position is equal.} 10. O-O {[%emt 0:00:06]} d5 {[%emt 0:02:25]} 11. cxd5 {[%emt 0:00:07]} Nxd5 {[%emt 0:02:50][%cal Oe5e4]} 12. Qc2 {[%emt 0:00:06] [#]} g5 $146 {[%emt 0:06:14]} ({Predecessor:} 12... Be6 13. Rac1 f6 14. Rfe1 Bf7 15. Ne4 Nce7 16. d4 exd4 17. Nxd4 c6 18. Nc5 Qc8 {1-0 (49) Paglinawan,Z (1647)-Lee,C (1979) Batangas 2019}) 13. h3 {[%emt 0:04:21]} h6 {[%emt 0:07:58]} 14. Rfe1 {[%emt 0:01:22]} Nb6 {[%emt 0:04:36]} 15. Ne4 {[%emt 0:02:32]} Kh8 {[%emt 0:06:04]} (15... f5 $14) 16. Ng3 $16 {[%emt 0:03:09][%cal Od3d4]} Kg8 {[%emt 0:07:06]} 17. Rad1 {[%emt 0:02:50]} Qe7 {[%emt 0:03:15]} 18. Nd2 {[%emt 0:02:26][%cal Bf3d2,Bd2e4,Be4c5][%mdl 32]} Qf8 {[%emt 0:02:08]} 19. Bf3 {[%emt 0:00:57]} Be6 {[%emt 0:02:19]} 20. Nde4 {[%emt 0:03:21]} Nd7 {[%emt 0:02:34]} (20... Bd5 $16 21. Nh5 Re6) 21. d4 $1 $18 {[%emt 0:13:22][%cal Bd3d4,Bd4d5][%mdl 32] Hoping for d5.} Nb6 {[%emt 0:18:27]} 22. Nc5 {[%emt 0:00:47] Black must now prevent d5.} Bc8 {[%emt 0:01:13]} (22... exd4 {was necessary.} 23. Bxc6 (23. Nxb7 Ne5 $16) (23. exd4 Bd5 $16) 23... bxc6) 23. Nh5 {[%emt 0:06:50]} Bh8 {[%emt 0:01:13]} 24. d5 {[%emt 0:00:14]} Nd8 {[%emt 0:02:51]} 25. g4 {[%emt 0:07:13]} f5 {[%emt 0:02:59]} 26. gxf5 {[%emt 0:04:06]} (26. Be2 $142) 26... Qxf5 $2 {[%emt 0:00:17]} (26... Bxf5 27. Ne4 (27. Be4 Bxe4 28. Nxe4 Qf7 $16) 27... Bh7) 27. Qxf5 $2 {[%emt 0:16:50]} (27. Be4 Qxh3 28. Ng3) 27... Bxf5 {[%emt 0:00:03]} 28. Bg4 {[%emt 0:00:12] 0x0.0024db2e1745dp-1022s more active pieces.} Bxg4 {[%emt 0:04:54]} 29. hxg4 {[%emt 0:00:01]} Nf7 {[%emt 0:00:59]} (29... a4 $16 {keeps fighting.}) 30. Nxb7 {[%emt 0:02:02]} a4 {[%emt 0:00:04] [#]} 31. b4 {[%emt 0:00:44]} Nc4 {[%emt 0:00:05] [#]} 32. Re2 {[%emt 0:00:15][%cal Be1e2,Be2b2,Bb2c2,Bc2c6][%mdl 32]} Ra7 {[%emt 0:01:42]} 33. Nc5 {[%emt 0:00:14]} Nxb2 {[%emt 0:01:03]} 34. Rxb2 {[%emt 0:00:08]} e4 {[%emt 0:00:05]} 35. Rc2 {[%emt 0:00:43]} Ne5 {[%emt 0:00:15]} (35... Nd6 $142 36. Ne6 Nb5) 36. Ng3 {[%emt 0:01:53] Pair of Knights!} Nxg4 {[%emt 0:00:42]} 37. Ngxe4 {[%emt 0:00:18]} Nf6 {[%emt 0:01:12]} 38. Nxf6+ {[%emt 0:00:19]} Bxf6 {[%emt 0:00:02]} 39. Ne6 {[%emt 0:00:32]} Re7 {[%emt 0:01:08]} 40. Rc6 {[%emt 0:01:09]} Bb2 {[%emt 0:00:32]} 41. Rd3 {[%emt 0:30:12]} Kh7 {[%emt 0:08:14]} 42. Nd4 {[%emt 0:00:00]} Rf7 {[%emt 0:01:55]} 43. Rc2 {[%emt 0:00:00]} Bxd4 {[%emt 0:00:38]} 44. Rxd4 {[%emt 0:00:00][%mdl 4096] Endgame KRR-KRR} ({Not} 44. exd4 Kg7 45. Rc6 Rd7 $16) 44... Kg6 {[%emt 0:01:17]} 45. Rc6+ {[%emt 0:00:00]} Kh5 {[%emt 0:02:23]} (45... Kg7 $142 46. Kg2 Rb7) 46. Kg2 {[%emt 0:00:00]} Ra8 {[%emt 0:00:51]} 47. Rd1 {[%emt 0:00:00] Threatens to win with f3.} Raf8 {[%emt 0:01:17]} 48. f3 {[%emt 0:00:00][%cal Rd1h1]} Rf6 {[%emt 0:05:18]} 49. Rdc1 {[%emt 0:00:00] Rxf6 is the strong threat.} R6f7 {[%emt 0:00:55]} (49... Kg6 $18 50. Rxf6+ Kxf6 51. Rxc7 h5) 50. Rh1# {[%emt 0:35:08] Weighted Error Value: White=0.22 (precise) /Black=0.58} 1-0